{"text_format":"3","workbook":"xlsx","n_sheets":5,"sheets":["Řídicí panel","Výdaje a příjem","Rozpočet","Seznamy dat","Kontingeční tabulka Kategorie"],"not_rendered":{"charts":3,"defined_names":18,"pivot_tables":2},"read":"whole","date_system":"1900"}

{"sheet":"Řídicí panel","index":0,"n_rows":21,"n_cols":16,"rows_kept":21,"merged":[[5,2,5,3],[8,9,8,10],[9,9,9,10],[10,9,10,10]]}
[]
[null,null,"Rozpočet domácnosti na čtrnáct dní",{"$nulls":12},"PŘEHLED"]
[]
[]
[]
[null,null,{"$f":"CHOOSE(ČísloMěsíce,\"Leden\",\"Únor\",\"Březen\",\"Duben\",\"Květen\",\"Červen\",\"Červenec\",\"Srpen\",\"Září\",\"Říjen\",\"Listopad\",\"Prosinec\")","v":"Srpen"},null,8,{"$nulls":5},2012]
[]
[]
[null,null,"SOUČTY ZA MĚSÍC","Monthly Totals",{"$nulls":5},"SOUČTY ZA ROK",null,"Annual Totals"]
[null,null,"PŘÍJEM","Výdaje",{"$f":"SUMIF(Výdaje[DATUM],\"<=\"&DatumMěsícKonec,Výdaje[ČÁSTKA])-SUMIF(Výdaje[DATUM],\"<\"&DatumMěsícZačátek,Výdaje[ČÁSTKA])","v":{"v":0,"d":"0 Kč"}},{"$nulls":4},"PŘÍJEM",null,"Výdaje",{"$f":"SUM(IF(YEAR(Výdaje[DATUM])=K6,Výdaje[ČÁSTKA]))","v":{"v":1225,"d":"1,225 Kč"}}]
[null,null,"VÝDAJE","příjem",{"$f":"SUMIF(příjem[DATUM],\"<=\"&DatumMěsícKonec,příjem[ČÁSTKA])-SUMIF(příjem[DATUM],\"<\"&DatumMěsícZačátek,příjem[ČÁSTKA])","v":{"v":0,"d":"0 Kč"}},{"$nulls":4},"VÝDAJE",null,"příjem",{"$f":"SUM(IF(YEAR(příjem[DATUM])=K6,příjem[ČÁSTKA]))","v":{"v":0,"d":"0 Kč"}}]
[]
[]
[]
[]
[]
[{"$nulls":3},"LEDEN","ÚNOR","BŘEZEN","DUBEN","KVĚTEN","ČERVEN","ČERVENEC","SRPEN","ZÁŘÍ","ŘÍJEN","LISTOPAD","PROSINEC"]
[null,null,"Příjem 1. - 15.",{"$f":"SUMIFS(příjem[ČÁSTKA],příjem[POPIS],\"<=\"&DatProstředek,příjem[POPIS],\">=\"&DatZačátek)","v":{"v":0,"d":"0.00 Kč"}},{"$f":"SUMIFS(příjem[ČÁSTKA],příjem[POPIS],\"<=\"&DatProstředek,příjem[POPIS],\">=\"&DatZačátek)","v":{"v":0,"d":"0.00 Kč"}},{"$f":"SUMIFS(příjem[ČÁSTKA],příjem[POPIS],\"<=\"&DatProstředek,příjem[POPIS],\">=\"&DatZačátek)","v":{"v":0,"d":"0.00 Kč"}},{"$f":"SUMIFS(příjem[ČÁSTKA],příjem[POPIS],\"<=\"&DatProstředek,příjem[POPIS],\">=\"&DatZačátek)","v":{"v":0,"d":"0.00 Kč"}},{"$f":"SUMIFS(příjem[ČÁSTKA],příjem[POPIS],\"<=\"&DatProstředek,příjem[POPIS],\">=\"&DatZačátek)","v":{"v":0,"d":"0.00 Kč"}},{"$f":"SUMIFS(příjem[ČÁSTKA],příjem[POPIS],\"<=\"&DatProstředek,příjem[POPIS],\">=\"&DatZačátek)","v":{"v":0,"d":"0.00 Kč"}},{"$f":"SUMIFS(příjem[ČÁSTKA],příjem[POPIS],\"<=\"&DatProstředek,příjem[POPIS],\">=\"&DatZačátek)","v":{"v":0,"d":"0.00 Kč"}},{"$f":"SUMIFS(příjem[ČÁSTKA],příjem[POPIS],\"<=\"&DatProstředek,příjem[POPIS],\">=\"&DatZačátek)","v":{"v":0,"d":"0.00 Kč"}},{"$f":"SUMIFS(příjem[ČÁSTKA],příjem[POPIS],\"<=\"&DatProstředek,příjem[POPIS],\">=\"&DatZačátek)","v":{"v":0,"d":"0.00 Kč"}},{"$f":"SUMIFS(příjem[ČÁSTKA],příjem[POPIS],\"<=\"&DatProstředek,příjem[POPIS],\">=\"&DatZačátek)","v":{"v":0,"d":"0.00 Kč"}},{"$f":"SUMIFS(příjem[ČÁSTKA],příjem[POPIS],\"<=\"&DatProstředek,příjem[POPIS],\">=\"&DatZačátek)","v":{"v":0,"d":"0.00 Kč"}},{"$f":"SUMIFS(příjem[ČÁSTKA],příjem[POPIS],\"<=\"&DatProstředek,příjem[POPIS],\">=\"&DatZačátek)","v":{"v":0,"d":"0.00 Kč"}}]
[null,null,"Příjem 16. - konec měsíce",{"$f":"SUMIFS(příjem[ČÁSTKA],příjem[POPIS],\"<=\"&DatKonec,příjem[POPIS],\">=\"&DatProstředek+1)","v":{"v":0,"d":"0.00 Kč"}},{"$f":"SUMIFS(příjem[ČÁSTKA],příjem[POPIS],\"<=\"&DatKonec,příjem[POPIS],\">=\"&DatProstředek+1)","v":{"v":0,"d":"0.00 Kč"}},{"$f":"SUMIFS(příjem[ČÁSTKA],příjem[POPIS],\"<=\"&DatKonec,příjem[POPIS],\">=\"&DatProstředek+1)","v":{"v":0,"d":"0.00 Kč"}},{"$f":"SUMIFS(příjem[ČÁSTKA],příjem[POPIS],\"<=\"&DatKonec,příjem[POPIS],\">=\"&DatProstředek+1)","v":{"v":0,"d":"0.00 Kč"}},{"$f":"SUMIFS(příjem[ČÁSTKA],příjem[POPIS],\"<=\"&DatKonec,příjem[POPIS],\">=\"&DatProstředek+1)","v":{"v":0,"d":"0.00 Kč"}},{"$f":"SUMIFS(příjem[ČÁSTKA],příjem[POPIS],\"<=\"&DatKonec,příjem[POPIS],\">=\"&DatProstředek+1)","v":{"v":0,"d":"0.00 Kč"}},{"$f":"SUMIFS(příjem[ČÁSTKA],příjem[POPIS],\"<=\"&DatKonec,příjem[POPIS],\">=\"&DatProstředek+1)","v":{"v":0,"d":"0.00 Kč"}},{"$f":"SUMIFS(příjem[ČÁSTKA],příjem[POPIS],\"<=\"&DatKonec,příjem[POPIS],\">=\"&DatProstředek+1)","v":{"v":0,"d":"0.00 Kč"}},{"$f":"SUMIFS(příjem[ČÁSTKA],příjem[POPIS],\"<=\"&DatKonec,příjem[POPIS],\">=\"&DatProstředek+1)","v":{"v":0,"d":"0.00 Kč"}},{"$f":"SUMIFS(příjem[ČÁSTKA],příjem[POPIS],\"<=\"&DatKonec,příjem[POPIS],\">=\"&DatProstředek+1)","v":{"v":0,"d":"0.00 Kč"}},{"$f":"SUMIFS(příjem[ČÁSTKA],příjem[POPIS],\"<=\"&DatKonec,příjem[POPIS],\">=\"&DatProstředek+1)","v":{"v":0,"d":"0.00 Kč"}},{"$f":"SUMIFS(příjem[ČÁSTKA],příjem[POPIS],\"<=\"&DatKonec,příjem[POPIS],\">=\"&DatProstředek+1)","v":{"v":0,"d":"0.00 Kč"}}]
[null,null,"Výdaje 1. - 15.",{"$f":"SUMIFS(Výdaje[ČÁSTKA],Výdaje[DATUM],\"<=\"&DatProstředek,Výdaje[DATUM],\">=\"&DatZačátek)","v":{"v":0,"d":"0.00 Kč"}},{"$f":"SUMIFS(Výdaje[ČÁSTKA],Výdaje[DATUM],\"<=\"&DatKonec,Výdaje[DATUM],\">=\"&DatZačátek)","v":{"v":0,"d":"0.00 Kč"}},{"$f":"SUMIFS(Výdaje[ČÁSTKA],Výdaje[DATUM],\"<=\"&DatKonec,Výdaje[DATUM],\">=\"&DatZačátek)","v":{"v":0,"d":"0.00 Kč"}},{"$f":"SUMIFS(Výdaje[ČÁSTKA],Výdaje[DATUM],\"<=\"&DatKonec,Výdaje[DATUM],\">=\"&DatZačátek)","v":{"v":0,"d":"0.00 Kč"}},{"$f":"SUMIFS(Výdaje[ČÁSTKA],Výdaje[DATUM],\"<=\"&DatKonec,Výdaje[DATUM],\">=\"&DatZačátek)","v":{"v":0,"d":"0.00 Kč"}},{"$f":"SUMIFS(Výdaje[ČÁSTKA],Výdaje[DATUM],\"<=\"&DatKonec,Výdaje[DATUM],\">=\"&DatZačátek)","v":{"v":0,"d":"0.00 Kč"}},{"$f":"SUMIFS(Výdaje[ČÁSTKA],Výdaje[DATUM],\"<=\"&DatKonec,Výdaje[DATUM],\">=\"&DatZačátek)","v":{"v":0,"d":"0.00 Kč"}},{"$f":"SUMIFS(Výdaje[ČÁSTKA],Výdaje[DATUM],\"<=\"&DatKonec,Výdaje[DATUM],\">=\"&DatZačátek)","v":{"v":0,"d":"0.00 Kč"}},{"$f":"SUMIFS(Výdaje[ČÁSTKA],Výdaje[DATUM],\"<=\"&DatKonec,Výdaje[DATUM],\">=\"&DatZačátek)","v":{"v":0,"d":"0.00 Kč"}},{"$f":"SUMIFS(Výdaje[ČÁSTKA],Výdaje[DATUM],\"<=\"&DatKonec,Výdaje[DATUM],\">=\"&DatZačátek)","v":{"v":0,"d":"0.00 Kč"}},{"$f":"SUMIFS(Výdaje[ČÁSTKA],Výdaje[DATUM],\"<=\"&DatKonec,Výdaje[DATUM],\">=\"&DatZačátek)","v":{"v":1225,"d":"1,225.00 Kč"}},{"$f":"SUMIFS(Výdaje[ČÁSTKA],Výdaje[DATUM],\"<=\"&DatKonec,Výdaje[DATUM],\">=\"&DatZačátek)","v":{"v":6125,"d":"6,125.00 Kč"}}]
[null,null,"Výdaje 16. - konec měsíce",{"$f":"SUMIFS(Výdaje[ČÁSTKA],Výdaje[DATUM],\"<=\"&DatKonec,Výdaje[DATUM],\">=\"&DatProstředek+1)","v":{"v":0,"d":"0.00 Kč"}},{"$f":"SUMIFS(Výdaje[ČÁSTKA],Výdaje[DATUM],\"<=\"&DatKonec,Výdaje[DATUM],\">=\"&DatProstředek+1)","v":{"v":0,"d":"0.00 Kč"}},{"$f":"SUMIFS(Výdaje[ČÁSTKA],Výdaje[DATUM],\"<=\"&DatKonec,Výdaje[DATUM],\">=\"&DatProstředek+1)","v":{"v":0,"d":"0.00 Kč"}},{"$f":"SUMIFS(Výdaje[ČÁSTKA],Výdaje[DATUM],\"<=\"&DatKonec,Výdaje[DATUM],\">=\"&DatProstředek+1)","v":{"v":0,"d":"0.00 Kč"}},{"$f":"SUMIFS(Výdaje[ČÁSTKA],Výdaje[DATUM],\"<=\"&DatKonec,Výdaje[DATUM],\">=\"&DatProstředek+1)","v":{"v":0,"d":"0.00 Kč"}},{"$f":"SUMIFS(Výdaje[ČÁSTKA],Výdaje[DATUM],\"<=\"&DatKonec,Výdaje[DATUM],\">=\"&DatProstředek+1)","v":{"v":0,"d":"0.00 Kč"}},{"$f":"SUMIFS(Výdaje[ČÁSTKA],Výdaje[DATUM],\"<=\"&DatKonec,Výdaje[DATUM],\">=\"&DatProstředek+1)","v":{"v":0,"d":"0.00 Kč"}},{"$f":"SUMIFS(Výdaje[ČÁSTKA],Výdaje[DATUM],\"<=\"&DatKonec,Výdaje[DATUM],\">=\"&DatProstředek+1)","v":{"v":0,"d":"0.00 Kč"}},{"$f":"SUMIFS(Výdaje[ČÁSTKA],Výdaje[DATUM],\"<=\"&DatKonec,Výdaje[DATUM],\">=\"&DatProstředek+1)","v":{"v":0,"d":"0.00 Kč"}},{"$f":"SUMIFS(Výdaje[ČÁSTKA],Výdaje[DATUM],\"<=\"&DatKonec,Výdaje[DATUM],\">=\"&DatProstředek+1)","v":{"v":0,"d":"0.00 Kč"}},{"$f":"SUMIFS(Výdaje[ČÁSTKA],Výdaje[DATUM],\"<=\"&DatKonec,Výdaje[DATUM],\">=\"&DatProstředek+1)","v":{"v":100,"d":"100.00 Kč"}},{"$f":"SUMIFS(Výdaje[ČÁSTKA],Výdaje[DATUM],\"<=\"&DatKonec,Výdaje[DATUM],\">=\"&DatProstředek+1)","v":{"v":775,"d":"775.00 Kč"}}]

{"sheet":"Výdaje a příjem","index":1,"n_rows":40,"n_cols":10,"rows_kept":40}
[]
[null,null,"Rozpočet domácnosti na čtrnáct dní",{"$nulls":6},"PŘÍJEM A VÝDAJE"]
[]
[]
[]
[null,null,"PŘÍJEM",{"$nulls":3},"VÝDAJE"]
[]
[null,null,"DATUM","POPIS","ČÁSTKA",null,"DATUM","KATEGORIE","POPIS","ČÁSTKA"]
[null,null,{"$f":"NOW()-14","v":"2013-02-06T12:41:50.810"},"Davidův platební šek",{"v":1300,"d":"1,300.00 Kč"},null,{"$f":"NOW()-7","v":"2013-02-13T12:41:50.810"},"Domácnost","Hypotéka",{"v":1000,"d":"1,000.00 Kč"}]
[null,null,{"$f":"NOW()-14","v":"2013-02-06T12:41:50.810"},"Patriciin platební šek",{"v":1300,"d":"1,300.00 Kč"},null,{"$f":"NOW()-7","v":"2013-02-13T12:41:50.810"},"Domácnost","Elektřina",{"v":100,"d":"100.00 Kč"}]
[null,null,{"$f":"NOW()-28","v":"2013-01-23T12:41:50.810"},"Davidův platební šek",{"v":1500,"d":"1,500.00 Kč"},null,"2013-02-13T12:41:50.810","Domácnost","Vodné, stočné",{"v":50,"d":"50.00 Kč"}]
[null,null,"2013-01-23T12:41:50.810","Patriciin platební šek",{"v":1600,"d":"1,600.00 Kč"},null,"2013-02-13T12:41:50.810","Domácnost","Svoz odpadu",{"v":25,"d":"25.00 Kč"}]
[null,null,{"$f":"NOW()-42","v":"2013-01-09T12:41:50.810"},"Davidův platební šek",{"v":1300,"d":"1,300.00 Kč"},null,"2013-02-13T12:41:50.810","Domácnost","Mobilní telefon",{"v":100,"d":"100.00 Kč"}]
[null,null,"2013-01-09T12:41:50.810","Patriciin platební šek",{"v":1300,"d":"1,300.00 Kč"},null,"2013-02-13T12:41:50.810","Domácnost","Telefon domů",{"v":30,"d":"30.00 Kč"}]
[null,null,{"$f":"NOW()-56","v":"2012-12-26T12:41:50.810"},"Davidův platební šek",{"v":1500,"d":"1,500.00 Kč"},null,"2013-02-13T12:41:50.810","Domácnost","Internet",{"v":50,"d":"50.00 Kč"}]
[null,null,"2012-12-26T12:41:50.810","Patriciin platební šek",{"v":1600,"d":"1,600.00 Kč"},null,"2013-02-13T12:41:50.810","Domácnost","Televize",{"v":50,"d":"50.00 Kč"}]
[null,null,{"$f":"NOW()-70","v":"2012-12-12T12:41:50.810"},"Davidův platební šek",{"v":1300,"d":"1,300.00 Kč"},null,"2013-02-13T12:41:50.810","Domácnost","Údržba/opravy",{"v":25,"d":"25.00 Kč"}]
[{"$nulls":6},{"$f":"NOW()-8","v":"2013-02-12T12:41:50.810"},"Domácnost","Kreditní karta 1",{"v":100,"d":"100.00 Kč"}]
[{"$nulls":6},{"$f":"NOW()-9","v":"2013-02-11T12:41:50.810"},"Zábava","Filmy",{"v":37,"d":"37.00 Kč"}]
[{"$nulls":6},{"$f":"NOW()-10","v":"2013-02-10T12:41:50.810"},"Jídlo","Potraviny",{"v":350,"d":"350.00 Kč"}]
[{"$nulls":6},{"$f":"NOW()-11","v":"2013-02-09T12:41:50.810"},"Jídlo","Jídlo v restauraci",{"v":75,"d":"75.00 Kč"}]
[{"$nulls":6},{"$f":"NOW()-12","v":"2013-02-08T12:41:50.810"},"Děti","Obědy",{"v":150,"d":"150.00 Kč"}]
[{"$nulls":6},{"$f":"NOW()-13","v":"2013-02-07T12:41:50.810"},"Investiční účty","Úspory",{"v":250,"d":"250.00 Kč"}]
[{"$nulls":6},{"$f":"NOW()-14","v":"2013-02-06T12:41:50.810"},"Investiční účty","Investiční účet",{"v":250,"d":"250.00 Kč"}]
[{"$nulls":6},{"$f":"NOW()-15","v":"2013-02-05T12:41:50.810"},"Osobní","Zdraví/Fitness",{"v":100,"d":"100.00 Kč"}]
[{"$nulls":6},{"$f":"NOW()-16","v":"2013-02-04T12:41:50.810"},"Domácí mazlíčci","Jídlo",{"v":50,"d":"50.00 Kč"}]
[{"$nulls":6},{"$f":"NOW()-20","v":"2013-01-31T12:41:50.810"},"Domácí mazlíčci","Ošetřování",{"v":50,"d":"50.00 Kč"}]
[{"$nulls":6},{"$f":"NOW()-20","v":"2013-01-31T12:41:50.810"},"Domácí mazlíčci","Jiné",{"v":50,"d":"50.00 Kč"}]
[{"$nulls":6},{"$f":"NOW()-25","v":"2013-01-26T12:41:50.810"},"Doprava","Splátky za auto 1",{"v":300,"d":"300.00 Kč"}]
[{"$nulls":6},{"$f":"NOW()-25","v":"2013-01-26T12:41:50.810"},"Doprava","Splátky za auto 2",{"v":350,"d":"350.00 Kč"}]
[{"$nulls":6},{"$f":"NOW()-25","v":"2013-01-26T12:41:50.810"},"Doprava","Pojištění auta",{"v":50,"d":"50.00 Kč"}]
[{"$nulls":6},{"$f":"NOW()-30","v":"2013-01-21T12:41:50.810"},"Doprava","Pohonné hmoty",{"v":50,"d":"50.00 Kč"}]
[{"$nulls":6},{"$f":"NOW()-31","v":"2013-01-20T12:41:50.810"},"Doprava","Pohonné hmoty",{"v":25,"d":"25.00 Kč"}]
[{"$nulls":6},{"$f":"NOW()-42","v":"2013-01-09T12:41:50.810"},"Doprava","Údržba/Opravy",{"v":150,"d":"150.00 Kč"}]
[{"$nulls":6},{"$f":"NOW()-45","v":"2013-01-06T12:41:50.810"},"Domácnost","Hypotéka",{"v":5000,"d":"5,000.00 Kč"}]
[{"$nulls":6},{"$f":"NOW()-50","v":"2013-01-01T12:41:50.810"},"Domácnost","Zásoby",{"v":200,"d":"200.00 Kč"}]
[{"$nulls":6},{"$f":"NOW()-65","v":"2012-12-17T12:41:50.810"},"Domácnost","Telefon domů",{"v":100,"d":"100.00 Kč"}]
[{"$nulls":6},{"$f":"NOW()-70","v":"2012-12-12T12:41:50.810"},"Domácnost","Svoz odpadu",{"v":50,"d":"50.00 Kč"}]
[{"$nulls":6},{"$f":"NOW()-75","v":"2012-12-07T12:41:50.810"},"Domácnost","Hypotéka",{"v":1000,"d":"1,000.00 Kč"}]
[{"$nulls":6},{"$f":"NOW()-78","v":"2012-12-04T12:41:50.810"},"Zábava","Filmy",{"v":75,"d":"75.00 Kč"}]

{"sheet":"Rozpočet","index":2,"n_rows":41,"n_cols":8,"rows_kept":41}
[]
[null,null,"Rozpočet domácnosti na čtrnáct dní",{"$nulls":4},"ROZPOČET"]
{"$rows_empty":10}
[null,null,"VÝDAJE",null,null,"CELKEM ZA KATEGORII"]
[]
[null,null,"POPIS","TOTALS "]
[null,null,"Elektřina",{"v":100,"d":"100 Kč"}]
[null,null,"Filmy",{"v":112,"d":"112 Kč"}]
[null,null,"Hypotéka",{"v":7000,"d":"7,000 Kč"}]
[null,null,"Internet",{"v":50,"d":"50 Kč"}]
[null,null,"Investiční účet",{"v":250,"d":"250 Kč"}]
[null,null,"Jídlo",{"v":50,"d":"50 Kč"}]
[null,null,"Jídlo v restauraci",{"v":75,"d":"75 Kč"}]
[null,null,"Jiné",{"v":50,"d":"50 Kč"}]
[null,null,"Kreditní karta 1",{"v":100,"d":"100 Kč"}]
[null,null,"Mobilní telefon",{"v":100,"d":"100 Kč"}]
[null,null,"Obědy",{"v":150,"d":"150 Kč"}]
[null,null,"Ošetřování",{"v":50,"d":"50 Kč"}]
[null,null,"Pohonné hmoty",{"v":75,"d":"75 Kč"}]
[null,null,"Pojištění auta",{"v":50,"d":"50 Kč"}]
[null,null,"Potraviny",{"v":350,"d":"350 Kč"}]
[null,null,"Splátky za auto 1",{"v":300,"d":"300 Kč"}]
[null,null,"Splátky za auto 2",{"v":350,"d":"350 Kč"}]
[null,null,"Svoz odpadu",{"v":75,"d":"75 Kč"}]
[null,null,"Telefon domů",{"v":130,"d":"130 Kč"}]
[null,null,"Televize",{"v":50,"d":"50 Kč"}]
[null,null,"Údržba/opravy",{"v":175,"d":"175 Kč"}]
[null,null,"Úspory",{"v":250,"d":"250 Kč"}]
[null,null,"Zásoby",{"v":200,"d":"200 Kč"}]
[null,null,"Zdraví/Fitness",{"v":100,"d":"100 Kč"}]
[null,null,"Vodné, stočné",{"v":50,"d":"50 Kč"}]
[null,null,"ÚHRADA",{"v":10242,"d":"10,242 Kč"}]

{"sheet":"Seznamy dat","index":3,"n_rows":20,"n_cols":14,"rows_kept":20}
[]
[null,null,"Rozpočet domácnosti na čtrnáct dní",{"$nulls":10},"SEZNAMY DAT"]
[]
[]
[null,null,"NASTAVENÍ         Následující data z kategorií naplní rozevírací seznamy v tabulce Výdaje na kartě Výdaje a příjem. Seznamy aktualizujete změnou názvů kategorií nebo popisů pod jednotlivými kategoriemi."]
[]
[null,null,"Domácnost","Zábava","Jídlo","Dary a příspěvky","Děti","Investiční účty","Doktor","Jiné","Osobní","Domácí mazlíčci","Daně/právníci","Doprava"]
[null,null,"Hypotéka","Filmy","Potraviny","Charita 1","Oblečení","DŮCHOD","Doktor/Kliniky","Jiné","Oblečení","Jídlo","Daň z příjmů","Splátky za auto 1"]
[null,null,"Elektřina","Video/filmy","Jídlo v restauraci","Charita 2","Hračky/Hry","Úspory","Pojištění","Organizační záležitosti","Kadeřník/manikúra","Zásoby","DPH","Splátky za auto 2"]
[null,null,"Vodné, stočné","Hudba",null,"Charita 3","Obědy","Šeky",null,null,"Čistírna","Doktor","Místní","Pojištění auta"]
[null,null,"Svoz odpadu","Koncerty/Divadlo",null,"Dárek","Dluhy/Splátky","Penze",null,null,"Zdraví/Fitness","Ošetřování","Jiné","Licence/Registrace"]
[null,null,"Mobilní telefon","Sportovní události",null,null,"Školní potřeby","Investiční účet",null,null,"Nakupování","Jiné","Právník","Pohonné hmoty"]
[null,null,"Telefon domů","Jiné",null,null,"Jiné","Vysoká škola",null,null,"Jiné",null,"Podpora dítěte","Údržba/Opravy"]
[null,null,"Internet",{"$nulls":3},"Praní","Půjčky",{"$nulls":4},"Alimenty","Veřejná přeprava"]
[null,null,"Televize",{"$nulls":4},"Studentské půjčky",{"$nulls":4},"Jiné"]
[null,null,"Údržba/Opravy"]
[null,null,"Zásoby"]
[null,null,"Kabelová televize/Internet/Telefon"]
[null,null,"Kreditní karta 1"]
[null,null,"Kreditní karta 2"]

{"sheet":"Kontingeční tabulka Kategorie","index":4,"n_rows":16,"n_cols":14,"rows_kept":16,"hidden":true}
[]
[null,null,"Rozpočet domácnosti na čtrnáct dní",{"$nulls":10},"KONTINGENČNÍ TABULKA KATEGORIE"]
[]
[]
[null,"Tato kontingenční tabulka je zdrojem dat pro kontingenční graf Celkem za kategorii v rozpočtu. "]
[]
[null,null,"Popisky řádků","Součet z ČÁSTKA"]
[null,null,"Děti",{"v":150,"d":"150 Kč"}]
[null,null,"Domácí mazlíčci",{"v":150,"d":"150 Kč"}]
[null,null,"Domácnost",{"v":7880,"d":"7,880 Kč"}]
[null,null,"Doprava",{"v":925,"d":"925 Kč"}]
[null,null,"Investiční účty",{"v":500,"d":"500 Kč"}]
[null,null,"Jídlo",{"v":425,"d":"425 Kč"}]
[null,null,"Osobní",{"v":100,"d":"100 Kč"}]
[null,null,"Zábava",{"v":112,"d":"112 Kč"}]
[null,null,"Celkový součet",{"v":10242,"d":"10,242 Kč"}]